bitfinex/quotes_ETHUSD_20260304
["timestamp","ask_amount","ask_price","bid_price","bid_amount"]
[1772641973737,1.16425278,2147.3,2146.3,1.16479522]
[1772641974154,6.755334,2147.3,2146.3,1.16479522]
[1772641974372,6.755334,2147.3,2146.1,2.27886894]
[1772641975084,6.755334,2147.3,2146.1,1.114]
[1772641975280,5.59108122,2147.1,2146.1,2.27889165]
[1772641975454,5.59108122,2147.1,2146.1,1.16489165]
[1772641975655,5.59108122,2147.1,2146.0,1.1649183]
[1772641975965,1.16441546,2147.0,2145.8,6.86347837]
[1772641976555,1.1643712,2147.1,2145.8,6.86347837]
[1772641977056,1.16434981,2147.2,2145.8,6.86347837]
[1772641978478,6.75543103,2147.2,2145.8,6.86347837]
[1772641978857,6.75543103,2147.2,2146.3,0.001]
[1772641979283,1.16428341,2147.3,2146.4,5.69841173]
[1772641979484,6.75536463,2147.3,2146.3,0.001]
[1772641980056,5.59108122,2146.9,2146.0,0.001]
[1772641980253,0.43222066,2147.2,2146.0,0.001]
[1772641980254,5.59108122,2146.7,2146.0,0.001]
[1772641980479,6.73008122,2146.7,2146.0,0.001]
[1772641981085,5.59108122,2147.1,2146.0,0.001]
[1772641981284,5.59108122,2147.1,2146.0,5.69941173]
[1772641981588,1.139,2147.1,2146.0,5.69941173]
[1772641981786,1.139,2147.1,2146.1,6.81341173]
[1772641982087,1.16441546,2147.0,2146.2,1.1648495]
[1772641982258,6.75549668,2147.0,2146.1,1.16486265]
[1772641982867,6.9208233,2147.8,2146.2,5.69841173]
[1772641982868,4.65648252,2147.6,2146.2,5.69841173]
[1772641983072,10.24756374,2147.6,2146.2,5.69841173]
[1772641984406,10.24756374,2147.6,2146.3,6.86320695]
[1772641984806,1.139,2147.7,2146.3,6.86320695]
[1772641985503,1.16602135,2147.8,2146.3,6.86320695]
[1772641985504,0.002,2147.8,2146.7,5.69841173]
[1772641985701,0.002,2147.8,2146.9,5.69841173]
[1772641986217,4.15917158,2148.2,2147.1,5.69841173]
[1772641986512,1.16376501,2148.2,2147.1,5.69841173]
[1772641986695,1.16365667,2148.4,2147.1,5.69841173]
[1772641987609,1.139,2148.5,2147.1,5.69841173]
[1772641988206,1.139,2148.5,2147.3,5.69841173]
[1772641988405,2.30260395,2148.5,2147.5,5.69841173]
[1772641988612,2.30260413,2148.5,2147.5,5.69841173]
[1772641988781,2.30261129,2148.5,2147.5,5.69841173]
[1772641989304,1.139,2148.5,2147.4,1.116]
[1772641989485,6.02395978,2148.4,2147.2,6.86271873]
[1772641989689,1.16360352,2148.5,2147.2,6.86271873]
[1772641989886,7.89368474,2148.5,2147.2,6.86271873]
[1772641990087,6.02395172,2148.4,2147.2,1.164307]
[1772641990301,6.75484623,2148.2,2147.0,6.86282719]
[1772641991018,5.59108122,2148.0,2146.9,1.16443116]
[1772641991223,5.59108122,2147.7,2146.7,1.16454486]
[1772641991713,1.14,2147.7,2146.7,6.86295659]
[1772641992018,6.73108122,2147.7,2146.7,6.86295659]
[1772641992223,3.34672901,2147.8,2146.7,6.86295659]
[1772641992417,6.75511716,2147.7,2146.7,1.16454486]
[1772641993389,1.16403594,2147.7,2146.7,6.86295659]
[1772641993847,6.75511716,2147.7,2146.6,1.16459184]
[1772641994120,6.02423133,2147.6,2146.5,1.16464451]
[1772641994322,6.02423133,2147.5,2146.5,1.16464451]
[1772641994529,6.75527978,2147.4,2146.5,1.16464451]
[1772641994724,1.14,2147.3,2146.4,6.81441173]
[1772641994943,6.73108122,2147.3,2146.0,1.117]
[1772641995100,5.59108122,2147.1,2146.3,0.001]
[1772641995486,6.02433948,2147.0,2146.3,0.001]
[1772641995683,5.59108122,2147.0,2146.3,0.001]
[1772641996496,1.1644697,2146.9,2146.3,0.001]
[1772641997019,1.14,2146.8,2146.3,0.001]
[1772641997227,6.73108122,2146.8,2146.3,0.001]
[1772641997795,1.1644697,2146.9,2146.3,0.001]
[1772641997991,2.3044697,2146.9,2146.3,0.001]
[1772641998191,2.3044697,2146.9,2146.0,0.001]
[1772641998519,8.10858413,2146.9,2146.0,0.001]
[1772641998687,2.3044697,2146.9,2146.0,5.51852517]
[1772641998890,2.3044697,2146.9,2146.0,0.001]
[1772641999085,8.10858413,2146.9,2146.0,0.001]
[1772642000301,1.141,2146.8,2146.0,5.51852517]
[1772642000498,1.1644697,2146.9,2146.0,5.51852517]
[1772642000821,1.1644697,2146.9,2146.2,5.51752517]
[1772642001595,2.30625278,2147.3,2146.2,5.51752517]
[1772642002019,0.002,2147.5,2146.2,5.51752517]
[1772642002324,0.002,2147.5,2146.4,5.51752517]
[1772642002710,0.002,2147.5,2146.6,5.51752517]
[1772642002907,0.002,2147.7,2146.6,5.51752517]
[1772642004834,0.002,2147.7,2146.8,5.7531108]
[1772642005167,0.002,2147.7,2147.0,5.7531108]
[1772642005329,0.002,2147.7,2146.9,1.117]
[1772642005733,0.002,2147.7,2146.9,6.8701108]
[1772642007031,0.002,2147.7,2146.9,6.91753706]
[1772642007230,0.002,2147.7,2146.7,1.117]
[1772642007429,5.7612856,2147.7,2146.2,6.91792228]
[1772642007627,5.7612856,2147.7,2146.2,6.91795299]
[1772642007628,5.7592856,2147.5,2146.2,6.91795299]
[1772642007832,0.002,2147.7,2146.0,2.28290828]
[1772642007833,5.7592856,2147.3,2146.0,2.28290828]
[1772642008034,5.7592856,2147.3,2146.0,8.03601908]
[1772642008331,6.9022856,2147.5,2146.1,5.7531108]
[1772642008630,6.19219878,2147.4,2146.1,5.7531108]
[1772642008834,1.16436123,2147.1,2146.2,1.1648495]
[1772642009220,1.16436123,2147.1,2146.2,6.9179603]
[1772642010542,6.92364683,2147.1,2146.0,0.001]
[1772642010711,5.7592856,2146.9,2146.0,0.001]
[1772642010907,1.16452394,2146.8,2146.0,1.16595679]
[1772642011112,1.16452394,2146.8,2146.4,0.001]
[1772642011939,6.92380954,2146.8,2146.1,0.001]
[1772642012234,6.9022856,2146.7,2146.1,0.001]
[1772642012437,5.7592856,2146.5,2145.8,0.001]
[1772642012614,5.7592856,2146.3,2145.8,0.001]
[1772642012937,5.7592856,2146.3,2145.9,0.001]
[1772642013236,5.7592856,2146.3,2145.1,5.7531108]
[1772642013237,7.35710161,2146.2,2145.1,5.7531108]
[1772642013435,1.143,2146.1,2145.1,6.91855436]
[1772642013639,6.9022856,2146.1,2144.9,1.119]
[1772642013943,6.19231263,2146.0,2144.9,1.119]
[1772642014145,0.43302703,2145.9,2144.9,1.119]
[1772642014308,2.3078495,2146.2,2145.0,5.7531108]
[1772642015340,5.7592856,2146.1,2144.9,0.001]
[1772642015716,5.7592856,2146.1,2144.9,1.16655335]
[1772642016153,5.7592856,2146.1,2144.9,6.91966415]
[1772642016441,6.9032856,2146.0,2144.9,6.91966415]
[1772642017111,1.16501234,2145.9,2144.9,6.91966415]
[1772642018215,6.92429794,2145.9,2144.9,6.91966415]
[1772642019534,1.16501234,2145.9,2144.9,6.91966415]
[1772642020012,1.1648495,2146.2,2144.9,6.91966415]
[1772642020319,6.9241351,2146.2,2144.9,6.91966415]
[1772642020714,6.9241351,2146.2,2144.9,0.001]
[1772642020938,5.7592856,2146.0,2144.9,0.001]
[1772642021542,6.92429794,2145.9,2144.9,0.001]
[1772642021717,1.145,2145.8,2144.9,0.001]
[1772642022418,1.16501234,2145.9,2144.9,5.7541108]
[1772642022617,1.145,2145.8,2144.9,5.7541108]
[1772642023013,1.16501234,2145.9,2144.9,5.7541108]
[1772642023944,1.16501234,2145.9,2145.0,6.91861196]
[1772642024149,1.16501234,2145.9,2145.0,5.7531108]
[1772642024469,6.92429794,2145.9,2144.9,0.001]
[1772642024764,6.92429794,2145.9,2144.9,1.1665498]
[1772642025139,1.146,2145.8,2144.9,1.1665498]
[1772642025542,1.16501234,2145.9,2144.9,6.9196606]
[1772642025741,4.66004939,2146.1,2144.9,6.9196606]
[1772642025942,4.66004939,2146.1,2145.2,0.001]
[1772642025943,10.41933499,2146.1,2145.2,0.001]
[1772642026343,5.7592856,2146.0,2145.2,0.001]
[1772642027767,6.92429794,2145.9,2145.2,0.001]
[1772642028252,1.147,2145.8,2145.2,0.001]
[1772642028648,6.89753726,2145.8,2145.0,0.001]
[1772642028857,5.75053726,2145.6,2144.7,0.001]
[1772642029254,0.14948499,2145.7,2144.7,0.001]
[1772642029255,5.75053726,2145.4,2144.7,0.001]
[1772642029459,5.75053726,2145.2,2144.7,0.001]
[1772642029845,5.75053726,2145.2,2144.6,0.001]
[1772642029846,5.75053726,2145.0,2144.5,0.001]
[1772642030044,5.75053726,2145.0,2144.2,0.001]
[1772642030855,5.75053726,2144.8,2144.2,0.001]
[1772642031073,5.75053726,2144.6,2144.2,0.001]
[1772642031270,5.75053726,2144.6,2143.3,1.16742381]
[1772642031581,5.75053726,2144.6,2143.3,1.16742336]
[1772642032076,1.1657729,2144.5,2143.3,6.8373544]
[1772642032277,1.16544683,2145.1,2143.5,5.66993104]
[1772642032648,6.91598409,2145.1,2143.5,5.66993104]
[1772642033675,2.31444683,2145.1,2143.5,5.66993104]
[1772642034186,2.31444683,2145.1,2143.7,5.66993104]
[1772642034470,5.75053726,2145.0,2143.7,5.66993104]
[1772642035045,2.31444683,2145.1,2143.7,5.66993104]
[1772642035277,4.66077945,2145.6,2143.7,5.66993104]
[1772642035478,5.81032366,2145.8,2143.7,5.66993104]
[1772642035643,5.81032366,2145.8,2144.1,2.53722365]
[1772642035974,5.81032366,2145.8,2144.2,6.78893104]
[1772642036473,5.81032366,2145.8,2144.4,5.66993104]
[1772642036780,1.16509908,2145.8,2144.4,5.66993104]
[1772642038463,4.6598501,2146.0,2144.6,5.66993104]
[1772642038648,1.15,2145.8,2144.6,5.66993104]
[1772642038849,6.90053726,2145.8,2144.6,5.66993104]
[1772642039593,1.15,2145.8,2144.6,5.66993104]
[1772642040186,4.6598501,2146.0,2144.6,5.66993104]
[1772642040489,1.58328012,2145.9,2144.6,5.66993104]
[1772642040648,1.16506664,2145.8,2144.8,5.66993104]
[1772642041590,0.002,2146.1,2144.8,5.66993104]
[1772642041775,1.16691643,2146.1,2145.0,5.66993104]
[1772642042576,0.002,2145.7,2145.0,5.66993104]
[1772642042753,0.002,2145.7,2145.2,5.66993104]
[1772642043157,0.002,2146.1,2145.2,5.66993104]
[1772642043376,0.002,2145.9,2145.2,5.66993104]
[1772642044353,0.002,2146.2,2145.3,5.66993104]
[1772642044751,0.002,2146.2,2145.5,5.66993104]
[1772642044954,0.002,2146.2,2145.7,5.66993104]
[1772642045192,0.002,2146.9,2145.7,5.66993104]
[1772642046188,5.75253726,2146.9,2145.7,5.66993104]
[1772642046749,5.75053726,2146.7,2145.3,6.83526922]
[1772642046955,2.74721901,2146.8,2145.3,5.66993104]
[1772642046956,5.75053726,2146.5,2145.3,5.66993104]
[1772642048288,5.75053726,2146.5,2145.2,0.8202998]
[1772642048584,5.75053726,2146.3,2145.2,0.8202998]
[1772642048794,1.1648495,2146.2,2145.2,0.8202998]
[1772642049165,6.91538676,2146.2,2145.2,0.8202998]
[1772642049369,5.75053726,2146.0,2145.2,0.8202998]
[1772642050085,5.75053726,2146.0,2144.8,1.16560953]
[1772642050891,1.16501234,2145.9,2144.8,1.16560953]
[1772642051194,1.16501234,2145.9,2144.8,6.83554057]
[1772642051402,1.16501234,2145.9,2144.9,1.119]
[1772642051570,6.9155496,2145.9,2144.8,5.66993104]
[1772642051882,5.75053726,2145.8,2144.7,0.001]
[1772642052471,5.75053726,2145.8,2144.7,1.16666394]
[1772642052667,5.75053726,2145.8,2144.7,6.83659498]
[1772642052988,1.16501234,2145.9,2144.7,6.83659498]
[1772642053694,6.9155496,2145.9,2144.7,5.67093104]
[1772642054186,6.9155496,2145.9,2144.7,6.83658732]
[1772642054358,6.9155496,2145.9,2144.7,5.67093104]
[1772642054558,6.9155496,2145.9,2144.7,6.83658306]
[1772642055585,1.15,2145.8,2144.7,6.83658306]
[1772642055787,1.16501234,2145.9,2144.7,6.83658306]
[1772642055991,6.9155496,2145.9,2144.7,7.95558306]
[1772642056572,6.9155496,2145.9,2144.8,5.66993104]
[1772642057287,1.16468669,2146.5,2145.2,5.66993104]
[1772642057492,0.002,2145.9,2145.4,5.66993104]
[1772642057890,1.16468669,2146.5,2145.4,5.66993104]
[1772642058071,6.91522395,2146.5,2145.4,5.66993104]
[1772642058266,0.002,2146.1,2145.4,5.66993104]
[1772642059470,0.002,2146.1,2145.3,2.28429405]
[1772642059791,0.002,2146.1,2145.4,5.45678028]
[1772642060366,0.002,2146.1,2145.3,2.28429405]
[1772642060976,4.93095167,2146.1,2144.9,2.28651643]
[1772642061183,4.93095167,2146.1,2144.9,7.74329671]
[1772642061371,1.16495806,2146.0,2145.0,5.45678028]
[1772642061786,6.09390973,2146.0,2144.9,2.286552]
[1772642061994,6.09390973,2146.0,2144.9,1.121]
[1772642062176,5.36248533,2145.9,2144.9,1.121]
[1772642062377,4.92895167,2145.9,2144.9,0.001]
[1772642063070,4.92895167,2145.9,2144.9,6.62333451]
[1772642063475,1.16506664,2145.8,2144.9,6.62333451]
[1772642066002,4.66026656,2145.9,2144.9,6.62333451]
[1772642066585,1.16501234,2145.9,2145.1,5.35656853]
[1772642067905,0.002,2146.1,2145.3,5.35656853]
[1772642068093,1.16691486,2146.1,2145.3,5.35656853]
[1772642068290,0.002,2146.1,2145.3,5.35656853]
[1772642069892,0.002,2146.1,2145.3,2.28733782]
[1772642070503,5.35284494,2146.1,2145.0,6.52202739]
[1772642070702,5.35284494,2146.1,2145.0,7.64402739]
[1772642070904,0.43454758,2146.0,2145.0,7.64402739]
[1772642071095,0.002,2146.1,2145.1,5.35656853]
[1772642071710,0.002,2146.4,2145.3,5.35656853]
[1772642071911,0.43438364,2146.3,2145.3,6.52186957]
[1772642072132,0.002,2146.4,2145.3,6.52186957]
[1772642072436,0.002,2146.4,2145.4,5.35656853]
[1772642072603,0.002,2146.9,2145.5,5.35656853]
[1772642072797,0.002,2146.9,2145.9,5.35656853]
[1772642073192,0.002,2146.9,2146.2,5.35656853]
[1772642073398,0.002,2146.3,2146.2,5.35656853]
[1772642073614,0.002,2146.9,2146.2,5.35656853]
[1772642073815,0.002,2146.9,2146.3,1.16479522]
[1772642073995,0.002,2146.9,2146.3,6.52136375]
[1772642074201,0.002,2146.5,2146.3,6.52136375]
[1772642074516,0.002,2146.9,2146.3,6.52136375]
[1772642074911,0.002,2146.8,2146.3,6.52136375]
[1772642076130,0.002,2147.1,2146.3,6.52136375]
[1772642076495,1.16409014,2147.6,2146.3,6.52136375]
[1772642077125,6.51493508,2147.6,2146.3,6.52136375]
[1772642078104,0.43288046,2147.5,2146.1,1.16485384]
[1772642078424,5.35084494,2147.4,2146.1,6.52142237]
[1772642078794,6.51493508,2147.6,2146.1,6.52142237]
[1772642082623,6.51493508,2147.6,2146.3,5.35656853]
[1772642083223,6.51493508,2147.6,2146.4,1.127]
[1772642084106,6.51493508,2147.6,2146.5,1.127]
[1772642084307,6.51493508,2147.6,2146.5,2.29168668]
[1772642084527,6.51493508,2147.6,2146.5,1.127]
[1772642084710,6.51493508,2147.6,2146.4,6.52125827]
[1772642084910,6.51493508,2147.6,2146.5,1.127]
[1772642085208,6.51493508,2147.6,2146.3,6.48356853]
[1772642085409,6.51493508,2147.6,2146.0,1.16493503]
[1772642085619,5.35084494,2147.4,2146.1,6.48356853]
[1772642086235,6.51493508,2147.6,2146.2,6.48456853]
[1772642086408,5.35084494,2147.4,2146.3,1.128]
[1772642086803,1.16409014,2147.6,2145.8,4.66026317]
[1772642086804,5.35084494,2147.2,2145.9,6.48456853]
[1772642087020,5.35084494,2147.0,2145.8,1.128]
[1772642087204,5.35084494,2147.0,2145.8,6.48456853]
[1772642087930,6.51493508,2147.6,2145.9,5.35656853]
[1772642088128,6.51493508,2147.6,2146.0,1.128]
[1772642088320,6.51493508,2147.6,2146.1,5.35656853]
[1772642088524,6.51493508,2147.6,2146.3,5.08839126]
[1772642088938,5.14853106,2147.4,2146.3,5.08839126]
[1772642089510,5.14853106,2147.4,2146.4,1.128]
[1772642089706,5.14853106,2147.4,2146.0,1.16595329]
[1772642089932,5.14653106,2147.2,2146.0,0.001]
[1772642090336,5.14653106,2147.0,2146.0,6.25434335]
[1772642090540,1.1644697,2146.9,2146.0,5.08939126]
[1772642090735,1.1644697,2146.9,2146.0,6.25434667]
[1772642091041,1.1644697,2146.9,2146.0,5.08939126]
[1772642091908,1.1644697,2146.9,2146.1,1.128]
[1772642092122,1.1644697,2146.9,2146.1,6.21639126]
[1772642092443,1.16414435,2147.5,2146.3,5.08839126]
[1772642093654,1.16414435,2147.5,2146.4,6.21739126]
[1772642094045,1.16414435,2147.5,2146.4,5.08839126]
[1772642094224,1.16414435,2147.5,2146.5,1.129]
[1772642094614,1.16414435,2147.5,2146.6,1.16463244]
[1772642095022,1.16414435,2147.5,2146.6,6.2530237]
[1772642096735,5.14653106,2147.5,2146.7,1.129]
[1772642097034,5.14653106,2147.5,2146.6,5.08839126]
[1772642097239,5.14653106,2147.5,2146.7,1.129]
[1772642098035,0.002,2147.6,2146.7,6.21739126]
[1772642098410,0.002,2147.6,2146.8,5.08839126]
[1772642099138,0.002,2147.6,2146.9,6.25286096]
[1772642099544,0.002,2147.6,2146.8,1.13]
[1772642099545,5.14853106,2147.6,2146.8,1.13]
[1772642099852,5.14853106,2147.6,2146.8,6.21839126]
[1772642099853,0.002,2147.6,2146.8,6.21839126]
[1772642100467,1.16364605,2148.5,2147.0,5.08839126]
[1772642100777,4.65394203,2148.8,2147.3,5.08839126]
[1772642100959,5.14653106,2148.7,2147.4,1.7691529]
[1772642101130,5.14653106,2148.3,2147.4,1.7691529]
[1772642101325,0.43375268,2148.2,2147.4,1.7691529]
[1772642101564,5.14653106,2148.3,2147.4,1.7691529]
[1772642101751,5.58030998,2148.2,2147.4,1.7691529]
[1772642101945,5.58030998,2148.1,2147.4,1.7691529]
[1772642102146,5.14653106,2148.1,2147.2,5.08839126]
[1772642102335,5.14653106,2148.1,2147.0,1.16441546]
[1772642102739,5.14653106,2148.1,2147.0,6.25280672]
[1772642103145,1.16387337,2148.0,2147.0,6.25280672]
[1772642103356,1.16371084,2148.3,2147.0,6.25280672]
[1772642103572,1.16338591,2148.9,2147.5,5.08839126]
[1772642103907,4.96583348,2149.9,2148.3,5.08839126]
[1772642104175,1.16285654,2149.9,2148.6,5.08839126]
[1772642104379,1.16285654,2149.9,2148.8,5.08839126]
[1772642104537,1.16285654,2149.9,2148.9,6.21939126]
[1772642104732,1.16285654,2149.9,2148.9,5.08839126]
[1772642104934,5.14653106,2150.2,2149.0,6.21939126]
[1772642105150,1.16252034,2150.5,2149.2,5.08839126]
[1772642105533,6.3090514,2150.5,2149.2,5.08839126]
[1772642105759,5.14653106,2150.3,2149.1,1.131]
[1772642105956,5.14653106,2150.3,2149.1,6.21939126]
[1772642106165,1.16252034,2150.5,2149.1,6.21939126]
[1772642106552,1.16252034,2150.5,2149.2,6.21939126]
[1772642107274,4.65008137,2150.6,2149.3,6.25156066]
[1772642107573,4.65008137,2150.6,2149.4,1.131]
[1772642107766,4.65008137,2150.6,2149.4,5.08839126]
[1772642107967,9.79661243,2150.6,2149.4,5.08839126]
[1772642108152,5.14653106,2150.5,2149.0,9.74167108]
[1772642108351,5.14653106,2150.5,2149.1,7.38266891]
[1772642108545,5.14653106,2150.5,2149.2,5.08839126]
[1772642108860,5.14653106,2150.5,2149.3,6.21939126]
[1772642109053,4.65008137,2150.6,2149.3,6.21939126]
[1772642109258,1.16246628,2150.7,2149.4,1.16311528]
[1772642109465,6.30899734,2150.7,2149.4,6.25150654]
[1772642110078,6.30899734,2150.7,2149.3,1.131]
[1772642110353,6.30899734,2150.7,2149.3,6.21939126]
[1772642111401,6.30899734,2150.7,2149.5,5.08839126]
[1772642112067,6.30899734,2150.7,2149.5,6.21939126]
[1772642112290,6.30899734,2150.7,2149.3,1.16313454]
[1772642112467,6.30899734,2150.7,2149.5,1.13]
[1772642113057,1.149,2150.6,2149.5,1.13]
[1772642113256,5.14653106,2150.5,2149.3,1.13]
[1772642113597,6.30910546,2150.4,2149.2,6.21839126]
[1772642113899,6.30910546,2150.4,2149.1,1.13]
[1772642114259,1.1625744,2150.4,2149.1,6.21839126]
[1772642115375,1.1625744,2150.4,2149.1,5.0836101]
[1772642115776,9.79682867,2150.5,2149.2,6.25161478]
[1772642116167,5.14653106,2150.4,2148.9,5.08839126]
[1772642116402,5.14653106,2150.2,2148.8,2.30591696]
[1772642116697,5.14653106,2149.8,2148.8,2.30591696]
[1772642117986,5.14653106,2149.6,2148.8,2.30591696]
[1772642118186,6.29553106,2149.5,2148.2,8.84411484]
[1772642118686,6.29553106,2149.5,2148.3,4.86700202]
[1772642118998,4.60403656,2149.3,2147.9,7.92965034]
[1772642119565,4.60403656,2149.3,2148.0,4.86700202]
[1772642119771,4.60403656,2149.6,2148.0,4.86700202]
[1772642119967,1.16306117,2149.5,2148.2,4.86700202]
[1772642120386,4.60403656,2149.4,2148.2,4.86700202]
[1772642120591,4.60403656,2149.4,2147.9,9.05964132]
[1772642120793,4.60403656,2149.4,2148.0,4.86700202]
[1772642120991,4.60403656,2149.2,2147.9,3.0626716]
[1772642121189,4.60403656,2149.2,2148.0,4.86700202]
[1772642121397,1.16306117,2149.5,2148.0,4.86700202]
[1772642121398,5.76709773,2149.5,2148.0,4.86700202]
[1772642121764,4.60403656,2149.4,2148.0,4.86700202]
[1772642121969,4.60403656,2149.4,2148.1,5.99700202]
[1772642122197,1.1631694,2149.3,2148.2,4.86700202]
[1772642123466,4.60403656,2149.2,2147.9,6.76575479]
[1772642123779,4.60403656,2149.2,2147.9,9.05968019]
[1772642124192,5.76731421,2149.1,2147.9,9.05968019]
[1772642124387,4.60403656,2149.0,2147.9,1.89875277]
[1772642125595,4.86128233,2148.4,2147.2,7.35551742]
[1772642125799,6.01128233,2148.3,2147.2,0.001]
[1772642126187,4.86128233,2148.1,2147.2,0.001]
[1772642126396,4.86128233,2147.9,2147.2,0.001]
[1772642126570,4.86128233,2147.7,2147.2,0.001]
[1772642126993,6.01128233,2147.7,2147.2,0.001]
[1772642127189,1.15,2147.7,2147.2,0.001]
[1772642127577,6.01128233,2147.7,2147.2,0.001]
[1772642128409,1.16409014,2147.6,2147.2,0.001]
[1772642129591,1.15,2148.1,2147.2,4.73895982]
[1772642129794,4.65442138,2148.5,2147.2,4.73895982]
[1772642130213,4.65462669,2148.7,2147.2,4.73895982]
[1772642130214,4.86128233,2148.4,2147.2,4.73895982]
[1772642130390,4.86128233,2148.4,2147.2,5.9032651]
[1772642130586,4.86128233,2148.4,2147.2,4.73895982]
[1772642130809,4.65462669,2148.7,2147.2,5.90326528]
[1772642131284,9.51590902,2148.7,2147.2,5.90326528]
[1772642131479,9.51590902,2148.7,2147.3,5.86795982]
[1772642131723,4.86128233,2148.6,2147.3,4.73795982]
[1772642131898,4.86128233,2148.6,2147.2,5.90325645]
[1772642132082,5.01076732,2148.5,2147.2,5.9032639]
[1772642132403,1.16365667,2148.4,2147.2,4.73895982]
[1772642132586,1.16365667,2148.4,2147.2,5.90326261]
[1772642132992,1.16365667,2148.4,2147.4,0.001]
[1772642133301,6.01228233,2148.3,2147.4,0.001]
[1772642133883,1.151,2148.3,2147.4,4.73895982]
[1772642134087,1.16365667,2148.4,2147.4,4.73895982]
[1772642134385,1.16354835,2148.6,2147.6,4.73795982]
[1772642134591,1.16338591,2148.9,2147.6,5.86695982]
[1772642135631,4.86128233,2149.5,2147.6,5.86695982]
[1772642135632,7.17539761,2149.4,2147.6,5.86695982]
[1772642136045,1.16311528,2149.4,2147.8,4.73795982]
[1772642136347,4.65446115,2149.6,2148.0,4.73795982]
[1772642136348,0.002,2149.6,2148.0,4.73795982]
[1772642136692,0.002,2149.6,2148.2,4.73795982]
[1772642136893,0.002,2149.6,2148.3,5.86695982]
[1772642138390,0.002,2149.6,2148.5,4.73795982]
[1772642138785,0.002,2149.6,2148.6,1.129]
[1772642138989,0.002,2149.6,2148.7,4.73795982]
[1772642139216,0.002,2149.6,2148.7,5.86695982]
[1772642139916,0.002,2149.6,2148.7,4.73795982]
[1772642140234,0.002,2149.6,2148.4,7.02961649]
[1772642140436,0.002,2149.6,2148.5,4.73795982]
[1772642142517,0.002,2149.6,2148.5,5.90152124]
[1772642142742,0.002,2149.6,2148.5,4.73795982]
[1772642143613,0.002,2149.6,2148.2,4.65490872]
[1772642143614,4.86328233,2149.6,2148.2,1.16371111]
[1772642143941,4.86328233,2149.6,2148.1,9.3932254]
[1772642143942,4.86128233,2149.4,2148.1,5.90176744]
[1772642144244,0.002,2149.6,2148.1,5.90176744]
[1772642144454,4.86328233,2149.6,2148.1,5.90176744]
[1772642144625,1.16306117,2149.5,2148.1,5.90176744]
[1772642144821,6.0243435,2149.5,2148.1,5.90176744]
[1772642145027,1.16306117,2149.5,2148.1,5.90176744]
[1772642145740,6.0243435,2149.5,2148.3,4.73795982]
[1772642146219,6.0243435,2149.5,2148.2,1.128]
[1772642146420,6.0243435,2149.5,2148.1,1.128]
[1772642146619,6.02445173,2149.3,2148.0,4.73795982]
[1772642146853,4.86128233,2149.1,2147.8,1.128]
[1772642147223,4.86128233,2149.1,2147.8,5.86595982]
[1772642148049,1.1631694,2149.3,2147.8,5.86595982]
[1772642148624,1.1631694,2149.3,2148.0,4.91220308]
[1772642149156,5.90464435,2149.3,2148.0,4.91220308]
[1772642149520,4.74147495,2149.1,2147.8,1.128]
[1772642149743,4.74147495,2149.0,2147.8,6.04020308]
[1772642149949,0.14948499,2148.9,2147.5,4.91220308]
[1772642150117,5.17343578,2148.8,2147.5,4.91220308]
[1772642150319,5.17343578,2148.7,2147.5,4.91220308]
[1772642150640,1.16354835,2148.6,2147.5,4.91220308]
[1772642150943,5.9050233,2148.6,2147.4,6.07739903]
[1772642151150,5.9050233,2148.6,2147.2,2.64774487]
[1772642151353,4.74147495,2148.4,2147.2,2.64774487]
[1772642151717,4.74147495,2148.4,2147.2,3.81204717]
[1772642152224,4.74147495,2148.4,2147.3,4.91220308]
[1772642152817,1.16371084,2148.3,2147.3,6.07641697]
[1772642154754,4.65420553,2148.6,2147.3,6.07641697]
[1772642154942,4.65420553,2148.6,2147.5,4.91220308]
[1772642155247,4.74147495,2148.5,2147.2,1.16528526]
[1772642155465,4.74147495,2148.5,2147.3,4.91220308]
[1772642155672,4.65420553,2148.6,2147.3,4.91220308]
[1772642156776,5.90513162,2148.4,2147.4,1.128]
[1772642157860,5.90513162,2148.4,2147.5,1.128]
[1772642158064,5.90513162,2148.4,2147.2,0.001]
[1772642158452,5.90513162,2148.4,2147.2,6.07748837]
[1772642158774,1.16381918,2148.1,2147.2,0.001]
[1772642159084,5.90529413,2148.1,2147.2,0.001]
[1772642160471,4.74147495,2147.7,2147.1,0.001]
[1772642160873,1.16409014,2147.6,2146.9,1.49548193]
[1772642161055,1.16409014,2147.6,2146.9,7.57211546]
[1772642161372,4.65551237,2148.0,2147.0,4.91220308]
[1772642162279,4.65551237,2148.0,2147.0,6.04120308]
[1772642162645,1.16376501,2148.2,2147.0,6.04120308]
[1772642162874,4.74147495,2148.2,2147.1,1.129]
[1772642164056,4.74147495,2148.2,2147.1,6.04120308]
[1772642164782,4.65485104,2148.3,2147.1,6.04120308]
[1772642165081,1.16371084,2148.4,2147.3,4.91220308]
[1772642165679,5.90518579,2148.4,2147.3,0.001]
[1772642166478,4.74147495,2148.2,2147.3,0.001]
[1772642166680,4.74147495,2148.0,2147.3,0.001]
[1772642166871,5.9054025,2147.9,2147.3,0.001]
[1772642167448,5.9054025,2147.9,2147.0,0.001]
[1772642167650,1.16392755,2147.9,2147.0,4.91320308]
[1772642167875,1.16392755,2147.9,2147.0,0.001]
[1772642167876,5.9054025,2147.9,2147.0,0.001]
[1772642168078,8.41518534,2147.9,2146.8,0.001]
[1772642168351,4.74147495,2147.8,2146.8,0.001]
[1772642168551,4.74147495,2147.8,2146.8,1.16551987]
[1772642168783,4.74147495,2147.8,2146.8,1.16550732]
[1772642168967,1.16403594,2147.7,2146.8,0.001]
[1772642170377,5.90551089,2147.7,2146.8,0.001]
[1772642171795,1.16392755,2147.9,2146.8,4.91320308]
[1772642172098,1.16376501,2148.2,2146.8,4.91320308]
[1772642172299,1.16376501,2148.2,2146.9,4.91220308]
[1772642172597,4.65477005,2148.4,2147.1,4.91220308]
[1772642172804,4.65385536,2148.8,2147.4,4.91220308]
[1772642173107,1.16544005,2148.9,2147.4,4.91220308]
[1772642173108,0.002,2148.9,2147.8,4.91220308]
[1772642173291,0.002,2148.9,2147.9,6.04120308]
[1772642174992,0.002,2148.9,2148.0,1.16387337]
[1772642175190,0.002,2148.9,2148.0,6.07607645]
[1772642176563,0.002,2148.9,2148.1,1.129]
[1772642176901,4.74347495,2148.9,2147.8,1.129]
[1772642177105,5.904915,2148.8,2147.8,2.29295799]
[1772642177668,4.74147495,2148.6,2147.2,2.17824439]
[1772642177983,4.74147495,2148.6,2147.1,6.07654181]